Cogmind - Beta 12 @@@ ROGUE MODE // 2023.03.19 @ 18:42:41 Player: Exp. Geonium Core Result: Destroyed by DAS Turret with DAS Cannon Performance ------------- Evolutions (1) 500 Regions Visited (5) 1000 Robots Destroyed (38) 190 Value Destroyed (889) 889 Prototype IDs (24) 480 Alien Tech Used (0) 0 Bonus (300) 300 TOTAL SCORE: 3359 Bonus ------- Aligned with FarCom 300 Cogmind --------- Core Integrity 0/400 Matter 280/300 Energy 99/100 System Corruption 2% Temperature Cool (0) Movement Core (700) Ox13 Location -9/Exiles Parts ------- > --- POWER (1) -------- (None) > --- PROPULSION (2) --- (None) > --- UTILITY (2) ------ High-capacity Storage Unit > --- WEAPON (4) ------- (None) > --- INVENTORY (20) --- Light Nuclear Core Reinforced Deuterium Engine Fission Core Light Fission Core Light Treads Light Treads Light Treads Large Matter Pod (150) Hardened Medium Armor Plating Hardened Medium Armor Plating Hardened Medium Armor Plating High-powered Tractor Beam Light Cannon Light Cannon Rocket Launcher Hammer Katana Heavy Explosive Trap Peak State ------------ > --- POWER ------------ Light Ion Engine > --- PROPULSION ------- Light Treads Light Treads > --- UTILITY ---------- High-capacity Storage Unit Hardened Medium Armor Plating > --- WEAPON ----------- Assault Rifle Improved Assault Rifle Improved Assault Rifle Improved Assault Rifle > --- INVENTORY -------- Light Nuclear Core Light Treads Light Treads Light Treads Large Matter Pod Advanced Targeting Computer Advanced Targeting Computer Advanced Targeting Computer Advanced Targeting Computer Hardened Medium Armor Plating Hardened Medium Armor Plating Hardened Medium Armor Plating High-powered Tractor Beam Assault Rifle Light Assault Rifle Light Cannon Light Cannon Light Cannon Light Cannon Hammer [Rating: 20] Favorites ----------- Power Light Ion Engine Engine Light Ion Engine Propulsion Light Treads Treads Light Treads Leg Aluminum Leg Utility High-capacity Storage Unit Storage High-capacity Storage Unit Protection Light Armor Plating Weapon Improved Assault Rifle Energy Gun Medium Laser Ballistic Gun Improved Assault Rifle Build | -11 -10 -10 -9 -9 -9 ------- Run | Jun Mat Min Mat Min Exi Slots Evolved 2 | . . . 2 . . Power . | . . . . . . Propulsion . | . . . . . . Utility . | . . . . . . Weapon 2 | . . . 2 . . Parts Attached 24 | 2 7 . 13 2 . Power 2 | . 2 . . . . Engine 2 | . 2 . . . . Core . | . . . . . . Reactor . | . . . . . . Propulsion 6 | 2 . . 4 . . Treads 6 | 2 . . 4 . . Leg . | . . . . . . Wheel . | . . . . . . Hover . | . . . . . . Flight . | . . . . . . Utility 5 | . 3 . 2 . . Device . | . . . . . . Storage 1 | . 1 . . . . Processor . | . . . . . . Hackware . | . . . . . . Protection 4 | . 2 . 2 . . Artifact . | . . . . . . Weapon 11 | . 2 . 7 2 . Energy Gun . | . . . . . . Energy Cannon . | . . . . . . Ballistic Gun 11 | . 2 . 7 2 . Ballistic Cannon . | . . . . . . Launcher . | . . . . . . Special Weapon . | . . . . . . Impact Weapon . | . . . . . . Slashing Weapon . | . . . . . . Piercing Weapon . | . . . . . . Special Melee Weapon . | . . . . . . Unidentified Prototypes 1 | . . . 1 . . Parts Lost 8 | . . . 1 . 7 Power 1 | . . . 1 . . Propulsion 2 | . . . . . 2 Utility 1 | . . . . . 1 Weapon 4 | . . . . . 4 Highest Loss Streak 7 | . . . 1 . 7 To Critical Strikes . | . . . . . . Average Slot Usage (%) 92 | . 96 100 98 88 86 Engine 5 | . 13 14 9 . . Treads 23 | . 28 28 22 22 21 Storage 11 | . 14 14 11 11 11 Protection 11 | . 12 14 11 11 10 Ballistic Gun 39 | . 25 28 43 44 43 Naked Turns . | . . . . . . Heaviest Build 62 | 12 50 50 62 55 55 Greatest Support 40 | 40 40 40 40 40 40 Greatest Overweight (x) 14 | . 1 1 1 1 14 Average Overweight (x) . | . . 1 1 1 1 Largest Inventory Capacity 20 | 8 20 20 20 20 20 Average Capacity 18 | 8 13 20 20 20 20 Most Carried 20 | 6 18 19 20 20 20 Average Carried 17 | 4 10 18 19 19 18 Final Capacity 20 | 8 20 20 20 20 20 Final Carried 20 | 2 18 19 20 20 18 Class Distribution -------------------- 48% | Scavenger-Tank 27% | Tank 23% | Mutant Dominant Class ---------------- Mutant | -10/Materials Mutant | -10/Mines Tank | -9/Materials Scavenger-Tank | -9/Mines Scavenger-Tank | -9/Exiles Resources | -11 -10 -10 -9 -9 -9 ----------- Run | Jun Mat Min Mat Min Exi Matter Collected 1030 | 199 212 27 468 116 8 Remotely . | . . . . . . Salvage Created 1258 | . 301 43 697 217 . Parts 82 | . 14 4 50 14 . Haulers Intercepted 1 | . . . 1 . . Recyclers Shooed 4 | . 3 . 1 . . Parts Field Recycled . | . . . . . . Retrieved Matter . | . . . . . . Parts Self-Destructed . | . . . . . . Prevented . | . . . . . . Kills | -11 -10 -10 -9 -9 -9 ------- Run | Jun Mat Min Mat Min Exi Combat Hostiles Destroyed 32 | . 5 3 20 4 . Guns 32 | . 5 3 20 4 . Classes Destroyed 11 | . 3 1 6 1 . Worker 1 | . . . 1 . . Builder 1 | . 1 . . . . Tunneler 1 | . . . . 1 . Hauler 1 | . . . 1 . . Recycler 1 | . 1 . . . . Watcher 1 | . . . 1 . . Swarmer 14 | . . 3 11 . . Grunt 11 | . 5 . 3 3 . Brawler 2 | . . . 1 1 . Duelist 1 | . . . 1 . . Sentry 4 | . . . 4 . . Best Kill Streak 8 | . 2 3 8 2 . Combat Bots Only 8 | . 2 3 8 2 . Max Kills in Single Turn 2 | . 1 2 2 1 . Gunslinging 1 | . . 1 . . . Exploded . | . . . . . . Melee . | . . . . . . Uniques/NPCs Destroyed . | . . . . . . Combat | -11 -10 -10 -9 -9 -9 -------- Run | Jun Mat Min Mat Min Exi Damage Taken 2229 | . 256 82 922 56 913 Core 528 | . 83 6 88 14 337 Absorbed by Shields . | . . . . . . Core Remaining (%) 82 | 100 . 64 . . . Volleys Fired 78 | . 28 5 32 6 7 Largest 4 | . 2 2 4 4 4 Hottest 92 | . 40 40 89 92 92 Shots Fired 229 | . 50 10 124 24 21 Gun 229 | . 50 10 124 24 21 Cannon . | . . . . . . Launcher . | . . . . . . Special . | . . . . . . Kinetic 229 | . 50 10 124 24 21 Thermal . | . . . . . . Explosive . | . . . . . . Electromagnetic . | . . . . . . Robot Hit Streak 10 | . 5 2 10 6 7 Robot Miss Streak 4 | . 4 2 3 2 1 Penetration Max . | . . . . . . Secondary Targets 7 | . . 1 6 . . Max Gunslinging Chain 1 | . . 1 1 . . Shots Hit Robots 139 | . 30 4 75 14 16 Core Hits 65 | . 16 3 32 9 5 Critical Kills 1 | . . . 1 . . Critical Parts Destroyed . | . . . . . . Critical Strikes 1 | . . . 1 . . Destroy 1 | . . . 1 . . Melee Attacks . | . . . . . . Impact . | . . . . . . Slashing . | . . . . . . Piercing . | . . . . . . Sneak Attacks . | . . . . . . Combat Hostiles . | . . . . . . Follow-up Attacks . | . . . . . . Damage Inflicted 1969 | . 404 50 1108 216 191 Guns 1912 | . 369 49 1103 200 191 Cannons . | . . . . . . Explosions . | . . . . . . Melee . | . . . . . . Ramming 57 | . 35 1 5 16 . Kinetic 1912 | . 369 49 1103 200 191 Thermal . | . . . . . . Explosive . | . . . . . . Electromagnetic . | . . . . . . Impact . | . . . . . . Slashing . | . . . . . . Piercing . | . . . . . . Highest Corruption 2 | . . . . . 2 Average Corruption 1 | . . . . . 1 Corruption Purged . | . . . . . . Corruption Blocked . | . . . . . . Overload Shots . | . . . . . . Overflow Damage . | . . . . . . Projectiles . | . . . . . . Explosions . | . . . . . . Melee . | . . . . . . Knockbacks . | . . . . . . Impact . | . . . . . . Kinetic . | . . . . . . Secondary . | . . . . . . Self-Inflicted Damage . | . . . . . . Shots . | . . . . . . Rammed 13 | . 8 1 2 2 . Targets Rammed 14 | . 9 1 2 2 . Kicked . | . . . . . . Crushed 1 | . 1 . . . . Highest Temperature 219 | . 24 . 219 42 21 Average Temperature 48 | . 6 . 63 15 14 Received Heat Transfer 351 | . 165 . 153 33 . Siege Activations . | . . . . . . Robots Corrupted . | . . . . . . Combat Hostiles . | . . . . . . Parts Fried . | . . . . . . Impact Corruptions . | . . . . . . Robots Melted . | . . . . . . Combat Hostiles . | . . . . . . Parts Melted . | . . . . . . Heat Transferred . | . . . . . . Parts Sabotaged . | . . . . . . Parts Stolen . | . . . . . . Parts Stripped . | . . . . . . Power Chain Reactions . | . . . . . . Missiles Intercepted . | . . . . . . Alert | -11 -10 -10 -9 -9 -9 ------- Run | Jun Mat Min Mat Min Exi Peak Influence 293 | . 172 71 293 170 . Initial 114 | . . 1 27 114 . Average 91 | . 54 60 135 71 . Maximum Alert Level 1 | . . . 1 . . Low Security (%) 90 | 100 100 100 75 100 . Level 1 9 | . . . 24 . . Level 2 . | . . . . . . Level 3 . | . . . . . . Level 4 . | . . . . . . Level 5 . | . . . . . . High Security . | . . . . . . Max Security . | . . . . . . Squads Dispatched 2 | . 2 . . . . Investigation . | . . . . . . Extermination . | . . . . . . Reinforcement 2 | . 2 . . . . Assault . | . . . . . . Garrison . | . . . . . . Intercept . | . . . . . . Searches Triggered . | . . . . . . Construction Impeded . | . . . . . . Haulers Reinforced . | . . . . . . Active Scanning Responses . | . . . . . . Cargo Convoy Interrupts . | . . . . . . Stealth | -11 -10 -10 -9 -9 -9 --------- Run | Jun Mat Min Mat Min Exi Distress Signals 5 | . 2 . 3 . . Communications Jammed . | . . . . . . Distress Signals . | . . . . . . Times Spotted 58 | . 7 3 29 4 15 Peak Tracking Total 9 | . 3 3 7 2 9 Tactical Retreats 3 | . . . 1 . 2 Traps | -11 -10 -10 -9 -9 -9 ------- Run | Jun Mat Min Mat Min Exi Traps Triggered 1 | . 1 . . . . Indirectly . | . . . . . . Trap Hack Attempts . | . . . . . . Triggered . | . . . . . . Disarmed . | . . . . . . Reprogrammed . | . . . . . . Reused 2 | . . . . . 2 Traps Extracted . | . . . . . . Installed 2 | . . . . . 2 Triggered . | . . . . . . Most Traps Carried 3 | . . . . 3 3 Machines | -11 -10 -10 -9 -9 -9 ---------- Run | Jun Mat Min Mat Min Exi Machines Disabled . | . . . . . . Max in Single Turn . | . . . . . . Machines Repaired . | . . . . . . Machines Sabotaged . | . . . . . . Overloaded Fab Kills . | . . . . . . Hacking | -11 -10 -10 -9 -9 -9 --------- Run | Jun Mat Min Mat Min Exi Machines Accessed 4 | . 1 . 2 . 1 Terminals 3 | . 1 . 2 . . Fabricators . | . . . . . . Repair Stations . | . . . . . . Recycling Units . | . . . . . . Scanalyzers . | . . . . . . Garrison Access . | . . . . . . Total Hacks 8 | . 5 . 2 . 1 Successful 4 | . 2 . 1 . 1 Failed 4 | . 3 . 1 . . Catastrophic . | . . . . . . Database Lockouts . | . . . . . . Manual 6 | . 3 . 2 . 1 Terminals 7 | . 5 . 2 . . Fabricators . | . . . . . . Repair Stations . | . . . . . . Recycling Units . | . . . . . . Scanalyzers . | . . . . . . Garrison Access . | . . . . . . Terminal Hacks 4 | . 2 . 1 . 1 Robot Schematic 1 | . 1 . . . . Branch Access Points 1 | . . . 1 . . Hauler Manifests 1 | . 1 . . . . EX-Prototype ID Bank 1 | . . . . . 1 Fabricator Hacks . | . . . . . . Repair Station Hacks . | . . . . . . Recycling Unit Hacks . | . . . . . . Scanalyzer . | . . . . . . Garrison Access Hacks . | . . . . . . Unauthorized Hacks . | . . . . . . Terminals . | . . . . . . Fabricators . | . . . . . . Repair Stations . | . . . . . . Recycling Units . | . . . . . . Scanalyzers . | . . . . . . Garrison Access . | . . . . . . Data Cores Recovered . | . . . . . . Used . | . . . . . . Hacking Detections 2 | . 1 . 1 . . Full Trace Events . | . . . . . . Feedback Events . | . . . . . . Feedback Blocked . | . . . . . . Robot Schematics Acquired 1 | . 1 . . . . Robots Built . | . . . . . . Authchips . | . . . . . . Time . | . . . . . . Total Robot Build Rating . | . . . . . . Part Schematics Acquired . | . . . . . . Parts Built . | . . . . . . Authchips . | . . . . . . Time . | . . . . . . Total Part Build Rating . | . . . . . . Parts Repaired . | . . . . . . Time . | . . . . . . Parts Recycled . | . . . . . . Recycled Matter . | . . . . . . Retrieved Matter . | . . . . . . Retrieved Components . | . . . . . . Parts Scanalyzed . | . . . . . . Part Schematics Acquired . | . . . . . . Parts Damaged . | . . . . . . Bothacking | -11 -10 -10 -9 -9 -9 ------------ Run | Jun Mat Min Mat Min Exi Used RIF Installer . | . . . . . . Robots Hacked . | . . . . . . Non-combat . | . . . . . . Combat . | . . . . . . Robot Hacks Applied . | . . . . . . Relay Couplers Released . | . . . . . . Fabnet Peak Effective % . | . . . . . . Robots Rewired . | . . . . . . Allies Hacked . | . . . . . . Hacks Repelled . | . . . . . . Allies | -11 -10 -10 -9 -9 -9 -------- Run | Jun Mat Min Mat Min Exi Total Allies 1 | . . . . 1 . Largest Group 1 | . . . . 1 . Highest-Rated Group 31 | . . . . 31 . Highest-Rated Ally 31 | . . . . 31 . Total Orders . | . . . . . . Ally Attacks . | . . . . . . Total Damage . | . . . . . . Kills . | . . . . . . Allies Corrupted . | . . . . . . Allies Melted . | . . . . . . Intel | -11 -10 -10 -9 -9 -9 ------- Run | Jun Mat Min Mat Min Exi Robot Analysis Total . | . . . . . . Derelict Logs Recovered 1 | . . . . 1 . Drone Launches . | . . . . . . Drone Recoveries . | . . . . . . Exploration | -11 -10 -10 -9 -9 -9 ------------- Run | Jun Mat Min Mat Min Exi Turns Passed 3322 | 5 619 126 987 796 789 Spaces Moved 1262 | 1 249 45 336 316 315 Core 1 | . . . . . 1 Treads 1261 | 1 249 45 336 316 314 Legs . | . . . . . . Wheels . | . . . . . . Hover . | . . . . . . Flight . | . . . . . . Fastest Speed 160 | 160 160 240 240 240 240 Average Speed 231 | 160 195 240 240 240 241 Slowest Speed 750 | 160 240 240 240 240 750 Overloaded Moves . | . . . . . . Propulsion Burnouts . | . . . . . . Robots Hopped . | . . . . . . Cave-ins Triggered . | . . . . . . Exploration Rate (%) 39 | 2 40 13 41 86 54 Regions Visited 5 Branch Regions 3 Pre-discovered Areas 1 | . . . . 1 . Known Exits Taken 1 | . . . 1 . . Unknown Exits Taken 4 | 1 1 1 . 1 . Scrap Searched 2 | . . . . 2 . Spaces Dug . | . . . . . . Terrain Destroyed . | . . . . . . Melee . | . . . . . . Projectile . | . . . . . . AOE . | . . . . . . Terrain Rammed . | . . . . . . Walls Destroyed . | . . . . . . Machines Disabled . | . . . . . . Actions | -11 -10 -10 -9 -9 -9 --------- Run | Jun Mat Min Mat Min Exi Total 1502 | 6 328 53 445 338 332 Wait 51 | . 13 2 33 3 . Move 1257 | . 248 44 335 315 315 Hop . | . . . . . . Pick Up 40 | . 19 1 12 5 3 Fast Attach 4 | . 3 . 1 . . Attach 7 | 2 2 . 3 . . Detach . | . . . . . . Swap 13 | . 2 . 9 2 . Drop 36 | 4 4 . 18 5 5 Fire 78 | . 28 5 32 6 7 Melee . | . . . . . . Ram . | . . . . . . Kick . | . . . . . . Crush 14 | . 9 1 2 2 . Escape Stasis . | . . . . . . Rewire . | . . . . . . Trap 2 | . . . . . 2 Miscellaneous . | . . . . . . Route ------- -11/Junkyard -10/Materials (discovered 2 exits: *Mat / [*Min]) -10/Mines -9/Materials (discovered 2 exits: [*Mat] / *Min) -9/Mines (discovered 3 exits: [*Mat x2] / *Exi) -9/Exiles History --------- Turn | Location | Event 6 | -11/Junkyard | Discovered new exit (range 0) 6 | -11/Junkyard | Entered Materials 277 | -10/Materials | Discovered new exit (range 11) 306 | -10/Materials | Build established: Mutant 373 | -10/Materials | Discovered new exit (range 15) 625 | -10/Materials | Entered Mines 652 | -10/Mines | Met a Derelict bent on vengeance 710 | -10/Mines | Discovered new exit (range 3) 751 | -10/Mines | Entered Materials 751 | -9/Materials | Evolved 2 slots: Weapon x2 967 | -9/Materials | Discovered new exit (range 13) 1046 | -9/Materials | Build established: Tank 1432 | -9/Materials | Identified exit to Mines 1501 | -9/Materials | Destroyed 8 combat bots 1738 | -9/Materials | Entered Mines 1844 | -9/Mines | Discovered new exit (range 6) 1847 | -9/Mines | Received a Mining Laser from a helpful Derelict 1981 | -9/Mines | Build established: Scavenger-Tank 2043 | -9/Mines | Discovered new exit (range 11) 2239 | -9/Mines | Received a Rocket Launcher from a helpful Derelict 2279 | -9/Mines | Found a hidden stash of uninstalled traps 2524 | -9/Mines | Deemed a non-threat by the Exiles lab entrance 2524 | -9/Mines | Discovered new exit (range 5) 2534 | -9/Mines | Entered Exiles 2599 | -9/Exiles | Met 8R-AWN 2638 | -9/Exiles | Met EX-HEX 2661 | -9/Exiles | Warned about trapping Exiles lab 3066 | -9/Exiles | Met EX-BIN 3092 | -9/Exiles | Aligned with FarCom system 3095 | -9/Exiles | Given EX-Vault access code 3150 | -9/Exiles | Opened EX-Vault 3205 | -9/Exiles | Warned to stay clear of 0b10 Research branches 3268 | -9/Exiles | Met EX-DEC 3296 | -9/Exiles | Attacked by the Exiles 3302 | -9/Exiles | Core integrity fell below 50% 3320 | -9/Exiles | Core integrity fell below 20% 3323 | -9/Exiles | Destroyed by DAS Turret with DAS Cannon Last Messages --------------- 03294_ Dropped Heavy Explosive Trap. 03295_ Installed Heavy Explosive Trap. 03296_ EXILES: Hostile robot within lab perimeter. Defensive protocols time, folks! 03298_ EX-DEC: "Let's see what this bad boy can do..." 03298_ EX-DEC deploys DAS Turret. 03299_ Imp. Assault Rifle destroyed. 03299_ Lgt. Armor Plating destroyed. 03305_ Lgt. Treads destroyed. 03310_ EX-BIN: "I just want to science!" 03311_ Machine disabled. 03313_ Imp. Assault Rifle destroyed. 03315_ Lgt. Treads destroyed. 03315_ Knocked back. 03316_ Acquired 8 matter. 03317_ Knocked back. 03322_ as-61490 triggered Heavy Explosive Trap. 03322_ An explosion rips through the floor. 03322_ as-61490 destroyed. 03323_ Hvy. Assault Rifle destroyed. Map ----- +----------------------------------------------------+ | ???????????????????????????????????????????????# | | ?????????????????????????????????" ???????????#" | | ?????????????????????????????????" ???????????#" | | ???????????????????????????????? ???????????#" | | ?????????????????????????????????" "?????????##" | | ?????????????????????????????????# #????????##"" | | ?????????????????????????##????### ##??######"" | | ?????????????????????? """#####X# #"###""""""" | | ????????????????????? """""" " "" | | ????????????????????? "" """ " | | ????????????????????? " " | | ????????????????????? ! | | ??????????????????????# !! | | ???????????????????????# | | ????????????????????????# | | ?????????????????????????#" | | ?????????????????????????#""" """"" | | ????????????????????????##" ###### | | ????????????????????????#"" ""##????# | | ???????????????????????## """##?????? | | ???????????????????????# """##??????? | | ??????????????????????## ""#???????? | | ??????????????????????# t ##???????? | | ??????????????????????# #??????? | | ???????????????????????# ????? | | ???????????????????????# @ ???? | | ???????????????????????# " ???? | | ???????????????????????### % ???? | | ?????????????????????????#" ???? | | ?????????????????????????#"""" ????? | | ?????????????????????????#"" "?????? | | ??????????????????????????" """??????? | | ???????????????????????????"" ????????? | | ???????????????????????????? ?????????? | | ????????????????????????????" ??????????? | | ?????????????????????????????"" ????????????? | | ???????????????????????????????""? ??????????????? | | ?????????????????????????????????????????????????? | | ?????????????????????????????????????????????????? | | ?????????????????????????????????????????????????? | | ?????????????????????????????????????????????????? | | ?????????????????????????????????????????????????? | | ?????????????????????????????????????????????????? | | ?????????????????????????????????????????????????? | | ?????????????????????????????????????????????????? | | ?????????????????????????????????????????????????? | | ?????????????????????????????????????????????????? | | ?????????????????????????????????????????????????? | | ?????????????????????????????????????????????????? | | ?????????????????????????????????????????????????? | +----------------------------------------------------+ Best States ------------- Heat Dissipation 28 Energy Generation 10 Energy Capacity 125 Matter Stores 300 Matter Capacity 300 Sight Range 16 Terrain Scan Density 10 Armor Coverage 225 Evasion (%) 40 Recoil Reduction 2 Item Schematics ----------------- None Robot Schematics ------------------ S-10 Pest | -10/Materials | Hacked Fabricated ------------ Nothing Alien Tech Used ----------------- None Achievements -------------- None Challenges ------------ None Game ------ Seed GatlingOpticalDatajack Manual? 0 Play Time 00:17:02 Cumulative 336.6 hours Start 2023.03.19 @ 18:06:43 End 2023.03.19 @ 18:42:41 Sessions 1 Manual Loads 0 Difficulty Rogue Special Mode None Game No. 390 Rogue 390 Adventurer 0 Explorer 0 Win Type - Total 11 Types 8/0/2/1/0/0/0/0/0 Lore% 79 Gallery% 88 Achievement% 78 Wizard Run 0 Options --------- ASCII 0 Keyboard 0 Movement Numpad Keybinds 0 Fullscreen 1 Font 18/Terminus Map View 76x50 Tactical HUD 1 Map Filters NONE Filters NONE Steam 1 RUN: 889e5399-1544-46d8-9eb4-5e9ed3a679a2